fUST/lending_fUST_20241230
["ID","MTS","AMOUNT","RATE_DAILY","PERIOD"]
[347157928,1735529445127,-167.916592,0.000169,2]
[347157929,1735529445137,-151.0,0.000169,2]
[347157930,1735529445147,-281.791409,0.000169,2]
[347157931,1735529445156,-281.791409,0.000169,2]
[347157932,1735529445165,-1234.88,0.00016998,2]
[347157933,1735529445174,-168.97031,0.00016999,2]
[347157934,1735529445184,-168.97031,0.00016999,2]
[347157935,1735529445193,-155.60987451,0.00017119,2]
[347157936,1735529445202,-703.48,0.00017163,2]
[347157937,1735529445211,-527.21,0.00017163,2]
[347157938,1735529445220,-1020.71,0.00017163,2]
[347157939,1735529445229,-815.57,0.00017164,2]
[347157940,1735529445238,-3185.2,0.00017164,2]
[347157941,1735529445247,-587.05,0.00017164,2]
[347157942,1735529445257,-500.0,0.00017164,2]
[347157943,1735529445267,-500.0,0.00017164,2]
[347157944,1735529445277,-500.0,0.00017164,2]
[347157945,1735529445286,-1003.81,0.00017164,2]
[347157946,1735529445295,-501.92,0.00017164,2]
[347157947,1735529445303,-1189.66,0.00017164,2]
[347157948,1735529445313,-678.57,0.00017164,2]
[347157949,1735529445322,-3886.45,0.00017164,2]
[347157950,1735529445332,-306.55,0.00017164,2]
[347157951,1735529445341,-500.0,0.00017164,2]
[347157952,1735529445350,-500.0,0.00017164,2]
[347157953,1735529445359,-500.0,0.00017164,2]
[347157954,1735529445369,-500.0,0.00017164,2]
[347157955,1735529445378,-654.42,0.00017164,2]
[347157956,1735529445387,-500.0,0.00017164,2]
[347157957,1735529445397,-500.0,0.00017164,2]
[347157958,1735529445406,-2106.53,0.00017164,2]
[347157959,1735529445415,-1192.33,0.00017166,2]
[347157960,1735529445424,-1219.86,0.00017167,2]
[347157961,1735529445434,-1924.14,0.00017167,2]
[347157962,1735529445443,-151.0,0.000172,2]
[347157963,1735529445452,-500.0,0.00017331,2]
[347157964,1735529445462,-500.0,0.00017373,2]
[347157965,1735529445472,-151.0,0.000174,2]
[347157966,1735529445481,-703.48,0.00017437,2]
[347157967,1735529445490,-527.21,0.00017437,2]
[347157968,1735529445499,-1020.71,0.00017437,2]
[347157969,1735529445508,-815.57,0.00017438,2]
[347157970,1735529445578,-3185.2,0.00017438,2]
[347157971,1735529445587,-587.05,0.00017438,2]
[347157972,1735529445596,-500.0,0.00017438,2]
[347157973,1735529445605,-469.02751789,0.00017438,2]
[347157974,1735529445615,-424.19,0.00017438,2]
[347157975,1735529445624,-1003.81,0.00017438,2]
[347157976,1735529445632,-501.92,0.00017438,2]
[347157977,1735529445641,-1189.66,0.00017438,2]
[347157978,1735529445651,-678.57,0.00017438,2]
[347157979,1735529445660,-3886.45,0.00017438,2]
[347157980,1735529445669,-500.0,0.00017438,2]
[347157981,1735529445679,-500.0,0.00017438,2]
[347157982,1735529445688,-500.0,0.00017438,2]
[347157983,1735529445697,-263.2,0.00017438,2]
[347157984,1735529445706,-654.42,0.00017438,2]
[347157985,1735529445715,-500.0,0.00017438,2]
[347157986,1735529445724,-500.0,0.00017438,2]
[347157987,1735529445734,-2106.53,0.00017438,2]
[347157988,1735529445743,-1192.33,0.0001744,2]
[347157989,1735529445752,-1219.86,0.00017441,2]
[347157990,1735529445761,-413.607581,0.00017441,2]
[347157991,1735529445770,-413.607581,0.00017441,2]
[347157992,1735529445780,-1353.650539,0.00017441,2]
[347157993,1735529445788,-1353.650539,0.00017441,2]
[347157994,1735529445798,-1924.14,0.00017441,2]
[347157995,1735529445809,-169.241826,0.00017442,2]
[347157996,1735529445819,-169.241826,0.00017442,2]
[347157997,1735529445828,-287.553596,0.00017442,2]
[347157998,1735529445837,-287.553596,0.00017442,2]
[347157999,1735529445846,-500.0,0.0001752,2]
[347158000,1735529445855,-500.316681,0.0001752,2]
[347158001,1735529445865,-1234.88,0.00017546,2]
[347158002,1735529445874,-276.04,0.00017563,2]
[347158003,1735529445884,-182.92065015,0.00017612,2]
[347158004,1735529445893,-151.0,0.00017633,2]
[347158005,1735529445902,-240.66979,0.00017633,2]
[347158006,1735529445911,-151.0,0.00017633,2]
[347158007,1735529445921,-240.66979,0.00017633,2]
[347158008,1735529445930,-717.094434,0.00017633,2]
[347158009,1735529445939,-717.094434,0.00017633,2]
[347158010,1735529445948,-500.0,0.000177,2]
[347158011,1735529445957,-500.0,0.000177,2]
[347158012,1735529445967,-500.0,0.000177,2]
[347158013,1735529445976,-161.03341932,0.000177,2]
[347158014,1735529445986,-703.48,0.00017711,2]
[347158015,1735529445995,-527.21,0.00017711,2]
[347158016,1735529446004,-1020.71,0.00017711,2]
[347158018,1735529446014,-151.0,0.00017712,2]
[347158020,1735529446023,-151.0,0.00017712,2]
[347158022,1735529446032,-166.743355,0.00017712,2]
[347158024,1735529446041,-151.0,0.00017712,2]
[347158026,1735529446051,-815.57,0.00017712,2]
[347158028,1735529446062,-3185.2,0.00017712,2]
[347158029,1735529446071,-275.512484,0.00017712,2]
[347158030,1735529446081,-275.512484,0.00017712,2]
[347158031,1735529446091,-587.05,0.00017712,2]
[347158032,1735529446101,-500.0,0.00017712,2]
[347158033,1735529446111,-1003.81,0.00017712,2]
[347158034,1735529446120,-501.92,0.00017712,2]
[347158035,1735529446130,-1189.66,0.00017712,2]
[347158036,1735529446140,-678.57,0.00017712,2]
[347158037,1735529446150,-3886.45,0.00017712,2]
[347158039,1735529446159,-330.71067264,0.00017712,2]
[347158041,1735529446169,-500.0,0.00017712,2]
[347158043,1735529446179,-500.0,0.00017712,2]
[347158045,1735529446188,-654.42,0.00017712,2]
[347158047,1735529446197,-500.0,0.00017712,2]
[347158049,1735529446206,-170.871156,0.00017712,2]
[347158051,1735529446215,-500.0,0.00017712,2]
[347158053,1735529446224,-170.871156,0.00017712,2]
[347158055,1735529446234,-2106.53,0.00017712,2]
[347158057,1735529446243,-534.771638,0.00017712,2]
[347158059,1735529446252,-534.771638,0.00017712,2]
[347158061,1735529446261,-151.0,0.00017712,2]
[347158063,1735529446270,-151.0,0.00017712,2]
[347158065,1735529446280,-1192.33,0.00017714,2]
[347158067,1735529446289,-1219.86,0.00017715,2]
[347158069,1735529446298,-1924.14,0.00017715,2]
[347158071,1735529446307,-1000.0,0.00017879,2]
[347158073,1735529446316,-151.0,0.000179,2]
[347158075,1735529446327,-823.0,0.00017905,2]
[347158077,1735529446336,-1000.0,0.00017921,2]
[347158079,1735529446345,-703.48,0.00017985,2]
[347158081,1735529446354,-527.21,0.00017985,2]
[347158083,1735529446363,-1020.71,0.00017985,2]
[347158085,1735529446372,-815.57,0.00017986,2]
[347158087,1735529446381,-3185.2,0.00017986,2]
[347158089,1735529446390,-587.05,0.00017986,2]
[347158091,1735529446400,-243.34655511,0.00017986,2]
[347158093,1735529446409,-1003.81,0.00017986,2]
[347158095,1735529446418,-501.92,0.00017986,2]
[347158097,1735529446427,-1189.66,0.00017986,2]
[347158099,1735529446436,-678.57,0.00017986,2]
[347158101,1735529446446,-3886.45,0.00017986,2]
[347158103,1735529446455,-500.0,0.00017986,2]
[347158105,1735529446464,-500.0,0.00017986,2]
[347158107,1735529446473,-654.42,0.00017986,2]
[347158109,1735529446482,-500.0,0.00017986,2]
[347158111,1735529446491,-500.0,0.00017986,2]
[347158113,1735529446501,-2106.53,0.00017986,2]
[347158115,1735529446510,-1192.33,0.00017988,2]
[347158117,1735529446519,-384.164817,0.00017988,2]
[347158119,1735529446529,-384.164817,0.00017988,2]
[347158121,1735529446538,-166.556369,0.00017988,2]
[347158123,1735529446548,-166.556369,0.00017988,2]
[347158125,1735529446557,-279.355962,0.00017988,2]
[347158127,1735529446566,-279.355962,0.00017988,2]
[347158129,1735529446578,-252.477872,0.00017988,2]
[347158131,1735529446587,-252.477872,0.00017988,2]
[347158133,1735529446596,-1219.86,0.00017989,2]
[347158135,1735529446605,-500.0,0.00017989,2]
[347158137,1735529446615,-569.75,0.00017989,2]
[347158139,1735529446624,-1924.14,0.00017989,2]
[347158141,1735529446633,-152.078961,0.0001799,2]
[347158143,1735529446643,-152.078961,0.0001799,2]
[347158145,1735529446652,-5164.75756255,0.00018,2]
[347158147,1735529446661,-151.0,0.00018,2]
[347158149,1735529446670,-1892.79393604,0.00018,2]
[347158151,1735529446679,-154.0,0.00018013,2]
[347158153,1735529446688,-154.0,0.00018013,2]
[347158155,1735529446698,-154.0,0.00018013,2]
[347158157,1735529446706,-206.99,0.00018013,2]
[347158159,1735529446715,-1234.88,0.00018023,2]
[347158161,1735529446724,-482.7002662,0.00018068,2]
[347158163,1735529446733,-1000.0,0.00018248,2]
[347158165,1735529446742,-1000.0,0.00018248,2]
[347158167,1735529446750,-1000.0,0.00018248,2]
[347158169,1735529446759,-703.48,0.00018259,2]
[347158171,1735529446768,-527.21,0.00018259,2]
[347158172,1735529446778,-1020.71,0.00018259,2]
[347158173,1735529446786,-815.57,0.0001826,2]
[347158174,1735529446795,-3185.2,0.0001826,2]
[347158175,1735529446804,-587.05,0.0001826,2]
[347158176,1735529446813,-1003.81,0.0001826,2]
[347158177,1735529446822,-501.92,0.0001826,2]
[347158178,1735529446831,-1189.66,0.0001826,2]
[347158179,1735529446840,-678.57,0.0001826,2]
[347158180,1735529446850,-3886.45,0.0001826,2]
[347158181,1735529446859,-500.0,0.0001826,2]
[347158182,1735529446927,-569.56010204,0.0001826,2]
[347158184,1735529446938,-654.42,0.0001826,2]
[347158185,1735529446947,-500.0,0.0001826,2]
[347158187,1735529446957,-500.0,0.0001826,2]
[347158188,1735529446967,-2106.53,0.0001826,2]
[347158189,1735529446976,-1192.33,0.00018262,2]
[347158191,1735529446985,-1219.86,0.00018263,2]
[347158192,1735529446996,-1924.14,0.00018263,2]
[347158193,1735529447005,-155.60987451,0.00018324,2]
[347158194,1735529447015,-151.0,0.000185,2]
[347158195,1735529447024,-815.57,0.00018533,2]
[347158196,1735529447035,-3185.2,0.00018533,2]
[347158197,1735529447044,-587.05,0.00018533,2]
[347158198,1735529447054,-1003.81,0.00018533,2]
[347158199,1735529447068,-501.92,0.00018533,2]
[347158200,1735529447077,-1189.66,0.00018533,2]
[347158201,1735529447087,-678.57,0.00018533,2]
[347158202,1735529447097,-3886.45,0.00018533,2]
[347158203,1735529447106,-500.0,0.00018533,2]
[347158204,1735529447116,-703.48,0.00018533,2]
[347158205,1735529447125,-654.42,0.00018533,2]
[347158206,1735529447135,-500.0,0.00018533,2]
[347158207,1735529447145,-527.21,0.00018533,2]
[347158208,1735529447154,-500.0,0.00018533,2]
[347158209,1735529447163,-2106.53,0.00018533,2]
[347158210,1735529447172,-1020.71,0.00018533,2]
[347158211,1735529447181,-1192.33,0.00018536,2]
[347158212,1735529447190,-1219.86,0.00018537,2]
[347158213,1735529447199,-151.0,0.00018537,2]
[347158214,1735529447208,-151.0,0.00018537,2]
[347158215,1735529447217,-1924.14,0.00018537,2]
[347158216,1735529447227,-151.0,0.000186,2]
[347158217,1735529447236,-168.97031,0.00018647,2]
[347158218,1735529447245,-168.97031,0.00018647,2]
[347158219,1735529447255,-261.805468,0.00018807,2]
[347158220,1735529447264,-261.805468,0.00018807,2]
[347158221,1735529447273,-167.916592,0.00018807,2]
[347158222,1735529447283,-167.916592,0.00018807,2]
[347158223,1735529447292,-281.791409,0.00018807,2]
[347158224,1735529447302,-281.791409,0.00018807,2]
[347158225,1735529447311,-815.57,0.00018807,2]
[347158226,1735529447321,-3185.2,0.00018807,2]
[347158227,1735529447331,-587.05,0.00018807,2]
[347158228,1735529447341,-1003.81,0.00018807,2]
[347158229,1735529447350,-501.92,0.00018807,2]
[347158230,1735529447359,-1189.66,0.00018807,2]
[347158231,1735529447368,-678.57,0.00018807,2]
[347158232,1735529447378,-3886.45,0.00018807,2]
[347158233,1735529447387,-500.0,0.00018807,2]
[347158234,1735529447397,-703.48,0.00018807,2]
[347158235,1735529447406,-654.42,0.00018807,2]
[347158236,1735529447415,-500.0,0.00018807,2]
[347158237,1735529447425,-1601.03558092,0.00018807,5]
[347158238,1735529447434,-527.21,0.00018807,2]
[347158239,1735529447443,-500.0,0.00018807,2]
[347158240,1735529447452,-2106.53,0.00018807,2]
[347158241,1735529447462,-1020.71,0.00018807,2]
[347158242,1735529447470,-1192.33,0.0001881,2]
[347158243,1735529447479,-1219.86,0.00018811,2]
[347158244,1735529447489,-1924.14,0.00018811,2]
[347158245,1735529447498,-1500.0,0.00018881,2]
[347158246,1735529447508,-1022.16088747,0.000189,2]
[347158247,1735529447518,-1234.88,0.00018916,2]
[347158248,1735529447527,-549.17307609,0.00018923,2]
[347158249,1735529447536,-815.57,0.00019081,2]
[347158250,1735529447546,-3185.2,0.00019081,2]
[347158251,1735529447555,-587.05,0.00019081,2]
[347158252,1735529447564,-1003.81,0.00019081,2]
[347158253,1735529447574,-501.92,0.00019081,2]
[347158254,1735529447583,-1189.66,0.00019081,2]
[347158255,1735529447593,-678.57,0.00019081,2]
[347158256,1735529447604,-3886.45,0.00019081,2]
[347158257,1735529447613,-237.1163089,0.00019081,2]
[347158258,1735529447622,-703.48,0.00019081,2]
[347158259,1735529447632,-654.42,0.00019081,2]
[347158260,1735529447641,-500.0,0.00019081,2]
[347158261,1735529447650,-527.21,0.00019081,2]
[347158262,1735529447659,-500.0,0.00019081,2]
[347158263,1735529447668,-2106.53,0.00019081,2]
[347158264,1735529447677,-1020.71,0.00019081,2]
[347158265,1735529447686,-1192.33,0.00019084,2]
[347158266,1735529447696,-1219.86,0.00019085,2]
[347158267,1735529447705,-1924.14,0.00019085,2]
[347158268,1735529447715,-169.241826,0.00019086,2]
[347158269,1735529447724,-169.241826,0.00019086,2]
[347158270,1735529447733,-287.553596,0.00019086,2]
[347158271,1735529447742,-287.553596,0.00019086,2]
[347158272,1735529447751,-193.176495,0.00019178,2]
[347158273,1735529447760,-1001.88637413,0.0001925,2]
[347158274,1735529447770,-1500.0,0.0001925,2]
[347158275,1735529447779,-1573.42216273,0.0001925,2]
[347158276,1735529447788,-151.0,0.0001925,2]
[347158277,1735529447797,-240.66979,0.0001925,2]
[347158278,1735529447807,-151.0,0.0001925,2]
[347158279,1735529447816,-240.66979,0.0001925,2]
[347158280,1735529447826,-717.094434,0.0001925,2]
[347158281,1735529447835,-717.094434,0.0001925,2]
[347158282,1735529447845,-815.57,0.00019355,2]
[347158283,1735529447854,-3185.2,0.00019355,2]
[347158284,1735529447865,-587.05,0.00019355,2]
[347158285,1735529447875,-1003.81,0.00019355,2]
[347158286,1735529447885,-501.92,0.00019355,2]
[347158287,1735529447894,-1189.66,0.00019355,2]
[347158288,1735529447904,-678.57,0.00019355,2]
[347158289,1735529447915,-3886.45,0.00019355,2]
[347158290,1735529447924,-703.48,0.00019355,2]
[347158291,1735529447933,-654.42,0.00019355,2]
[347158292,1735529447943,-500.0,0.00019355,2]
[347158293,1735529447952,-527.21,0.00019355,2]
[347158294,1735529447961,-170.871156,0.00019355,2]
[347158295,1735529447971,-500.0,0.00019355,2]
[347158296,1735529447981,-170.871156,0.00019355,2]
[347158297,1735529447990,-2106.53,0.00019355,2]
[347158298,1735529447999,-534.771638,0.00019355,2]
[347158299,1735529448009,-1020.71,0.00019355,2]
[347158300,1735529448019,-534.771638,0.00019355,2]
[347158301,1735529448029,-151.0,0.00019355,2]
[347158302,1735529448038,-151.0,0.00019355,2]
[347158303,1735529448048,-1192.33,0.00019358,2]
[347158304,1735529448062,-1219.86,0.00019359,2]
[347158305,1735529448072,-151.0,0.00019359,2]
[347158306,1735529448082,-151.0,0.00019359,2]
[347158307,1735529448092,-151.0,0.00019359,2]
[347158308,1735529448102,-275.512484,0.00019359,2]
[347158309,1735529448113,-275.512484,0.00019359,2]
[347158310,1735529448123,-1924.14,0.00019359,2]
[347158311,1735529448134,-151.0,0.000194,2]
[347158312,1735529448143,-155.60987451,0.0001953,2]
[347158313,1735529448213,-1152.0,0.00019624,2]
[347158314,1735529448224,-585.66028423,0.00019625,2]
[347158315,1735529448234,-569.75,0.00019625,2]
[347158316,1735529448243,-815.57,0.00019629,2]
[347158317,1735529448253,-3185.2,0.00019629,2]
[347158318,1735529448263,-587.05,0.00019629,2]
[347158319,1735529448272,-1003.81,0.00019629,2]
[347158320,1735529448283,-501.92,0.00019629,2]
[347158321,1735529448293,-1189.66,0.00019629,2]
[347158322,1735529448303,-678.57,0.00019629,2]
[347158323,1735529448313,-3886.45,0.00019629,2]
[347158324,1735529448323,-703.48,0.00019629,2]
[347158325,1735529448332,-654.42,0.00019629,2]
[347158326,1735529448342,-405.59622416,0.00019629,2]
[347158327,1735529448352,-527.21,0.00019629,2]
[347158328,1735529448361,-562.23961074,0.00019629,2]
[347158329,1735529448371,-2106.53,0.00019629,2]
[347158330,1735529448380,-1020.71,0.00019629,2]
[347158331,1735529448390,-492.969,0.0001963,2]
[347158332,1735529448400,-1192.33,0.00019632,2]
[347158333,1735529448410,-1219.86,0.00019633,2]
[347158334,1735529448419,-1924.14,0.00019633,2]
[347158335,1735529448429,-384.164817,0.00019903,2]
[347158336,1735529448439,-384.164817,0.00019903,2]
[347158337,1735529448448,-166.556369,0.00019903,2]
[347158338,1735529448458,-166.556369,0.00019903,2]
[347158339,1735529448467,-279.355962,0.00019903,2]
[347158340,1735529448477,-279.355962,0.00019903,2]
[347158341,1735529448487,-252.477872,0.00019903,2]
[347158342,1735529448497,-252.477872,0.00019903,2]
[347158343,1735529448506,-815.76,0.00019903,2]
[347158344,1735529448516,-3185.2764,0.00019903,2]
[347158345,1735529448525,-587.18625562,0.00019903,2]
[347158346,1735529448535,-1003.84,0.00019903,2]
[347158347,1735529448545,-501.95477091,0.00019903,2]
[347158348,1735529448555,-1189.84702841,0.00019903,2]
[347158349,1735529448565,-678.78191926,0.00019903,2]
[347158350,1735529448575,-3886.4508052,0.00019903,2]
[347158351,1735529448584,-703.62979038,0.00019903,2]
[347158352,1735529448593,-654.56797805,0.00019903,2]
[347158353,1735529448603,-527.28368984,0.00019903,2]
[347158354,1735529448613,-2106.66323216,0.00019903,2]
[347158355,1735529448622,-1020.80084963,0.00019903,2]
[347158356,1735529448631,-1192.44777765,0.00019906,2]
[347158357,1735529448641,-1219.92,0.00019907,2]
[347158358,1735529448651,-152.078961,0.00019907,2]
[347158359,1735529448660,-152.078961,0.00019907,2]
[347158360,1735529448669,-1924.24077063,0.00019907,2]
[347158361,1735529448679,-2350.0,0.00019991,2]
[347158362,1735529448688,-394.0,0.00019991,2]
[347158363,1735529448698,-1234.88,0.00019998,2]
[347158364,1735529448707,-1234.88,0.00019998,2]
[347158365,1735529448718,-1234.88,0.00019998,2]
[347158366,1735529448727,-1234.88,0.00019998,2]
[347158367,1735529448737,-1235.03242205,0.00019998,2]
[347158368,1735529448746,-151.0,0.00019998,2]
[347158369,1735529448755,-168.97031,0.00019999,2]
[347158370,1735529448765,-168.97031,0.00019999,2]
[347158371,1735529448774,-413.607581,0.00019999,2]
[347158372,1735529448784,-413.607581,0.00019999,2]
[347158373,1735529448793,-1353.650539,0.00019999,2]
[347158374,1735529448803,-1353.650539,0.00019999,2]
[347158375,1735529448812,-153716.58419234,0.0002,2]
[347158376,1735529448848,-425.98950552,0.00013673,2]
[347158377,1735529448858,-7347.01292719,0.0002,2]
[347158378,1735529448870,-5169.17706195,0.0002,2]
[347158379,1735529449028,-504.58,0.00013601,2]
[347158380,1735529449037,-500.0,0.00013601,2]
[347158381,1735529449047,-143.38758541,0.00013601,2]
[347158382,1735529449062,-356.61241459,0.00013601,2]
[347158383,1735529449071,-500.0,0.00013601,2]
[347158384,1735529449080,-224.37021833,0.00013601,2]
[347158385,1735529449090,-30659.62953673,0.0002,2]
[347158386,1735529449101,-8507.61522911,0.0002,2]
[347158387,1735529449111,-168.97031,0.0002,2]
[347158388,1735529449120,-168.97031,0.0002,2]
[347158389,1735529449132,-8983.67980893,0.0002,2]
[347158390,1735529449143,-3051.1567958,0.0002,2]
[347158391,1735529449152,-11780.0,0.0002,2]
[347158392,1735529449163,-1169464.79086626,0.0002,4]
[347158393,1735529449578,-2228.95021833,0.00013465,2]
[347158394,1735529449587,-5148.04495905,0.0002,4]
[347158395,1735529825022,346.0,0.00025,120]
[347158397,1735530000926,300.0,0.00012935,2]
[347158398,1735530016832,300.0,0.00012935,2]
[347158399,1735530025059,300.0,0.00012935,2]
[347158400,1735530058006,24900.0,0.00012602,2]
[347158401,1735530395681,10000.0,0.00025,120]
[347158402,1735530404969,10000.0,0.000171,90]
[347158403,1735530411655,10000.0,0.00025,120]
[347158404,1735530427000,10000.0,0.00025,120]
[347158405,1735530434665,10000.0,0.00025,120]
[347158406,1735530441538,10000.0,0.00025,120]
[347158407,1735530451472,10000.0,0.00025,120]
[347158408,1735530461965,10000.0,0.000171,90]
[347158409,1735530470264,10000.0,0.00025,120]
[347158411,1735530481419,10000.0,0.00025,120]
[347158412,1735530492588,4186.71,0.000171,90]
[347158413,1735530492612,5813.29,0.000171,90]
[347158414,1735530507469,10000.0,0.00025,120]
[347158415,1735530518335,10000.0,0.00025,120]
[347158416,1735530526000,10000.0,0.00025,120]
[347158417,1735530595080,-206.8069445,0.00013036,2]
[347158418,1735530595108,-299.76359925,0.00013401,2]
[347158419,1735530595135,-392.23258361,0.00013401,2]
[347158420,1735530595163,-162.12006282,0.00013499,2]
[347158421,1735530595190,-168.66219585,0.00013501,2]
[347158422,1735530595218,-92.62577206,0.00013597,2]
[347158423,1735530595252,-207.37422794,0.00013597,2]
[347158424,1735530595281,-351.51857498,0.00013598,2]
[347158425,1735530595311,-500.0,0.00013598,2]
[347158426,1735530595340,-263.31835517,0.00013598,2]
[347158427,1735530595372,-227.55826217,0.00013598,2]
[347158428,1735530628863,10000.0,0.00025,120]
[347158464,1735530632875,-5000.0,0.00013363,2]
[347158465,1735530632885,-206.8069445,0.00013498,2]
[347158466,1735530632895,-300.0,0.00013597,2]
[347158467,1735530632904,-13.8365569,0.00013598,2]
[347158468,1735530632913,-500.35909102,0.00013598,2]
[347158469,1735530632930,-500.0,0.00013598,2]
[347158470,1735530632939,-23.59091361,0.00013598,2]
[347158471,1735530632950,-152.51738606,0.00013598,2]
[347158472,1735530632959,-732.88,0.00013598,2]
[347158473,1735530632969,-500.0,0.00013598,2]
[347158474,1735530632977,-500.0,0.00013598,2]
[347158475,1735530632987,-500.0,0.00013598,2]
[347158476,1735530632997,-500.0,0.00013598,2]
[347158477,1735530633006,-638.55,0.00013598,2]
[347158478,1735530633018,-500.0,0.00013598,2]
[347158479,1735530633027,-500.0,0.00013598,2]
[347158480,1735530633037,-500.0,0.00013598,2]
[347158481,1735530633047,-503.41247348,0.00013598,2]
[347158482,1735530633058,-500.0,0.00013598,2]
[347158483,1735530633067,-412.49456257,0.00013598,2]
[347158484,1735530633077,-594.86386166,0.00013598,2]
[347158485,1735530633086,-822.24,0.00013598,2]
[347158486,1735530633096,-396.42270197,0.00013598,2]
[347158487,1735530633105,-500.75439109,0.00013599,2]
[347158488,1735530633115,-500.0,0.00013599,2]
[347158489,1735530633124,-500.0,0.00013599,2]
[347158490,1735530633134,-500.0,0.00013599,2]
[347158491,1735530633143,-500.0,0.00013599,2]
[347158492,1735530633152,-501.27215535,0.00013599,2]
[347158493,1735530633162,-500.0,0.00013599,2]
[347158494,1735530633172,-500.0,0.00013599,2]
[347158495,1735530633181,-500.0,0.00013599,2]
[347158496,1735530633191,-500.0,0.00013599,2]
[347158497,1735530633200,-500.0,0.00013599,2]
[347158498,1735530633210,-508.2510892,0.00013599,2]
[347158499,1735530633219,-406.20383104,0.00013599,2]
[347158500,1735530633228,-500.0,0.00013599,2]
[347158501,1735530633238,-500.0,0.00013599,2]
[347158502,1735530633247,-500.0,0.00013599,2]
[347158503,1735530633256,-500.0,0.00013599,2]
[347158504,1735530633267,-500.0,0.00013599,2]
[347158505,1735530633276,-500.0,0.00013599,2]
[347158506,1735530633285,-500.0,0.00013599,2]
[347158507,1735530633294,-475.7073951,0.00013599,2]
[347158508,1735530633303,-500.0,0.00013599,2]
[347158509,1735530633311,-501.02095167,0.00013599,2]
[347158510,1735530633320,-2614.02,0.00013599,2]
[347158511,1735530633328,-2614.02,0.00013599,2]
[347158512,1735530633337,-2614.02,0.00013599,2]
[347158513,1735530633346,-2614.02,0.00013599,2]
[347158514,1735530633356,-2614.02,0.00013599,2]
[347158515,1735530633366,-500.0,0.00013599,2]
[347158516,1735530633375,-500.51059186,0.00013599,2]
[347158517,1735530633385,-500.0,0.00013599,2]
[347158518,1735530633394,-501.612839,0.00013599,2]
[347158519,1735530633404,-500.8992017,0.00013599,2]
[347158520,1735530633413,-500.0,0.00013599,2]
[347158521,1735530633422,-337.85008547,0.00013599,2]
[347158522,1735530636284,10000.0,0.000171,90]
[347158576,1735530638780,-268.99979083,0.00013463,2]
[347158578,1735530638789,-424.5,0.00013598,2]
[347158580,1735530638799,-500.0,0.00013598,2]
[347158582,1735530638808,-284.02467139,0.00013599,2]
[347158584,1735530638818,-500.0,0.00013599,2]
[347158586,1735530638827,-498.70649106,0.00013599,2]
[347158588,1735530638836,-500.0,0.00013599,2]
[347158590,1735530638845,-500.0,0.00013599,2]
[347158592,1735530638855,-500.0,0.00013599,2]
[347158594,1735530638864,-731.92,0.00013599,2]
[347158596,1735530638873,-182.09454652,0.00013599,2]
[347158598,1735530638882,-501.65883138,0.00013599,2]
[347158600,1735530638891,-500.0,0.00013599,2]
[347158602,1735530638901,-500.0,0.00013599,2]
[347158604,1735530638910,-501.00765593,0.00013599,2]
[347158606,1735530638920,-501.52749384,0.00013599,2]
[347158608,1735530638929,-431.02703449,0.00013599,2]
[347158610,1735530638938,-646.94,0.00013599,2]